[Event "Hunan Belt and Road Open 2019"]
[Site "Hunan"]
[Date "2019.08.01"]
[Round "4.16"]
[White "Lupulescu, Constantin"]
[Black "Wang, Chen"]
[Result "1-0"]
[ECO "B46"]
[WhiteElo "2649"]
[BlackElo "2476"]
[Annotator "RC"]
[PlyCount "99"]
[EventDate "2019.07.29"]
[EventType "swiss"]
[EventCountry "CHN"]
[SourceTitle "playchess.com"]
[Source "ChessBase"]
[SourceQuality "1"]
[TimeControl "5400+30"]

1. e4 {[%emt 0:00:00]} c5 {[%emt 0:05:04]} 2. Nf3 {[%emt 0:00:00]} e6 {[%emt 0:01:12]} 3. d4 {[%emt 0:00:00]} cxd4 {[%emt 0:00:07]} 4. Nxd4 {[%emt 0:00:03]} Nc6 {[%emt 0:02:49]} 5. Nc3 {[%emt 0:00:13]} a6 {[%emt 0:04:11]} 6. Nxc6 {[%emt 0:00:31]} bxc6 {[%emt 0:00:13]} 7. Bd3 {[%emt 0:00:57]} d5 {[%emt 0:03:28]} 8. O-O {[%emt 0:00:34]} Nf6 {[%emt 0:00:18]} 9. Qe2 {[%emt 0:03:47]} Be7 {[%emt 0:03:19]} 10. b3 {[%emt 0:02:13]} Qc7 {[%emt 0:02:54]} 11. f4 {[%emt 0:13:53]} Bb7 {[%emt 0:10:39]} 12. Bb2 {[%emt 0:03:21]} h5 {[%emt 0:10:40]} 13. e5 {[%emt 0:08:31]} Nd7 {[%emt 0:05:44]} 14. Na4 {[%emt 0:09:08]} g6 {[%emt 0:21:17]} 15. c4 {[%emt 0:05:40]} Nc5 {[%emt 0:05:24]} 16. Nxc5 {[%emt 0:11:17]} Bxc5+ {[%emt 0:00:05]} 17. Kh1 {[%emt 0:00:03]} d4 {[%emt 0:07:41]} 18. Be4 {[%emt 0:04:04]} Qb6 {[%emt 0:05:37]} 19. Rad1 {[%emt 0:05:30]} O-O-O {[%emt 0:00:29]} 20. Rd3 {[%emt 0:02:37]} Rd7 {[%emt 0:00:06]} 21. a3 {[%emt 0:08:58]} a5 {[%emt 0:00:05]} 22. Rb1 {[%emt 0:00:20]} Kc7 {[%emt 0:01:17]} 23. Bc1 {[%emt 0:06:09]} Ba6 {[%emt 0:01:26]} 24. Qc2 {[%emt 0:04:31]} Rb8 {[%emt 0:00:32]} 25. b4 {[%emt 0:01:41]} axb4 {[%emt 0:01:55]} 26. Rdb3 {[%emt 0:00:22]} d3 {[%emt 0:03:54]} 27. Bxd3 {[%emt 0:00:24]} Rbd8 {[%emt 0:00:50]} 28. Bd2 {[%emt 0:02:29]} Be7 {[%emt 0:01:17]} 29. axb4 {[%emt 0:00:57]} Kb8 {[%emt 0:00:23]} 30. Rf1 {[%emt 0:03:27]} Qd4 {[%emt 0:00:49]} 31. Be1 {[%emt 0:00:39]} Qa1 {[%emt 0:01:04]} 32. Bc3 {[%emt 0:01:01]} Qa4 {[%emt 0:00:11]} 33. Be2 {[%emt 0:00:27]} Bh4 {[%emt 0:00:47]} 34. g3 {[%emt 0:00:57]} Be7 {[%emt 0:00:32]} 35. Ra1 {[%emt 0:01:01]} Rd2 {[%emt 0:00:08]} 36. Qb1 {[%emt 0:01:00]} Qxa1 {[%emt 0:00:36]} 37. Qxa1 {[%emt 0:00:05]} Rxe2 {[%emt 0:00:11]} 38. Ra3 {[%emt 0:00:52]} Bb7 {[%emt 0:00:28]} 39. c5 {[%emt 0:00:04]} Rd3 {[%emt 0:00:11]} 40. Bd4 {[%emt 0:00:42]} Rdd2 {[%emt 0:01:11]} 41. Bg1 {[%emt 0:00:06]} Rb2 {[%emt 0:00:14]} 42. Rd3 {[%emt 0:00:31]} Ra2 {[%emt 0:00:35]} 43. Qd4 {[%emt 0:00:58]} Bc8 {[%emt 0:00:47]} 44. b5 {[%emt 0:00:44]} cxb5 {[%emt 0:00:27]} 45. c6 {[%emt 0:00:03]} Ra6 {[%emt 0:00:42]} 46. Rc3 {[%emt 0:01:16]} Kc7 {[%emt 0:00:02]} 47. Rc1 {[%emt 0:00:20]} b4 {[%emt 0:00:33]} 48. Qc4 {[%emt 0:00:18]} Rd2 {[%emt 0:01:04]} 49. Bc5 {[%emt 0:00:56]} Rxc6 {[%emt 0:00:06]} 50. Bd6+ {[%emt 0:00:37]} 1-0

[Event "Hunan Belt and Road Open 2019"]
[Site "Hunan"]
[Date "2019.08.01"]
[Round "4.19"]
[White "Lin, Yi"]
[Black "Ju, Wenjun"]
[Result "1/2-1/2"]
[ECO "D90"]
[WhiteElo "2406"]
[BlackElo "2595"]
[Annotator "ChessBase"]
[PlyCount "70"]
[EventDate "2019.07.29"]
[EventType "swiss"]
[EventCountry "CHN"]
[SourceTitle "playchess.com"]
[Source "ChessBase"]
[SourceQuality "1"]
[TimeControl "5400+30"]

1. d4 {[%emt 0:00:00]} Nf6 {[%emt 0:00:00]} 2. c4 {[%emt 0:00:00]} g6 {[%emt 0:00:00]} 3. Nc3 {[%emt 0:00:00]} d5 {[%emt 0:00:06]} 4. Bf4 {[%emt 0:01:51]} Bg7 {[%emt 0:00:21]} 5. e3 {[%emt 0:00:14]} c6 {[%emt 0:00:38]} 6. Nf3 {[%emt 0:06:00]} O-O {[%emt 0:00:06]} 7. cxd5 {[%emt 0:01:18]} cxd5 {[%emt 0:20:31]} 8. h3 {[%emt 0:00:22]} Qb6 {[%emt 0:01:09]} 9. a3 {[%emt 0:10:42]} Bf5 {[%emt 0:06:59]} 10. Na4 {[%emt 0:01:52]} Qd8 {[%emt 0:04:28]} 11. Be2 {[%emt 0:00:41]} Nbd7 {[%emt 0:02:08]} 12. O-O {[%emt 0:03:10]} Rc8 {[%emt 0:00:06]} 13. Qb3 {[%emt 0:16:37]} Bc2 {[%emt 0:09:34]} 14. Qb4 {[%emt 0:00:27]} Nb8 {[%emt 0:05:12]} 15. Rac1 {[%emt 0:15:21]} Nc6 {[%emt 0:01:24]} 16. Qb5 {[%emt 0:00:41]} Bxa4 {[%emt 0:11:09]} 17. Qxa4 {[%emt 0:00:06]} Qb6 {[%emt 0:00:40]} 18. b4 {[%emt 0:04:47]} a5 {[%emt 0:06:14]} 19. b5 {[%emt 0:02:00]} Na7 {[%emt 0:00:19]} 20. Nd2 {[%emt 0:01:38]} Rfe8 {[%emt 0:07:37]} 21. Nb3 {[%emt 0:04:41]} Ne4 {[%emt 0:00:04]} 22. Qxa5 {[%emt 0:00:08]} Qxa5 {[%emt 0:00:03]} 23. Nxa5 {[%emt 0:00:04]} Nc3 {[%emt 0:00:06]} 24. Bg4 {[%emt 0:01:51]} f5 {[%emt 0:01:07]} 25. Bf3 {[%emt 0:00:33]} b6 {[%emt 0:02:31]} 26. Nc6 {[%emt 0:03:39]} Naxb5 {[%emt 0:00:03]} 27. a4 {[%emt 0:00:13]} Nxd4 {[%emt 0:01:41]} 28. Nxd4 {[%emt 0:10:55]} e5 {[%emt 0:01:49]} 29. Nb5 {[%emt 0:01:52]} Nxb5 {[%emt 0:00:24]} 30. Bxd5+ {[%emt 0:01:32]} Kf8 {[%emt 0:01:08]} 31. Bxe5 {[%emt 0:00:55]} Bxe5 {[%emt 0:00:06]} 32. axb5 {[%emt 0:00:05]} Rxc1 {[%emt 0:06:05]} 33. Rxc1 {[%emt 0:00:05]} Rd8 {[%emt 0:00:01]} 34. Bf3 {[%emt 0:03:23]} f4 {[%emt 0:00:00]} 35. exf4 {[%emt 0:02:54]} Bxf4 {[%emt 0:00:15]} 1/2-1/2

[Event "Hunan Belt and Road Open 2019"]
[Site "Hunan"]
[Date "2019.08.01"]
[Round "4.23"]
[White "Lagno, Kateryna"]
[Black "Xu, Minghui"]
[Result "1/2-1/2"]
[ECO "C84"]
[WhiteElo "2549"]
[BlackElo "2401"]
[Annotator "ChessBase"]
[PlyCount "91"]
[EventDate "2019.07.29"]
[EventType "swiss"]
[EventCountry "CHN"]
[SourceTitle "playchess.com"]
[Source "ChessBase"]
[SourceQuality "1"]
[TimeControl "5400+30"]

1. e4 {[%emt 0:00:00]} e5 {[%emt 0:00:00]} 2. Nf3 {[%emt 0:00:00]} Nc6 {[%emt 0:00:00]} 3. Bb5 {[%emt 0:00:00]} a6 {[%emt 0:00:13]} 4. Ba4 {[%emt 0:00:00]} Nf6 {[%emt 0:00:12]} 5. O-O {[%emt 0:00:00]} Be7 {[%emt 0:00:07]} 6. d3 {[%emt 0:00:07]} b5 {[%emt 0:02:20]} 7. Bb3 {[%emt 0:00:29]} d6 {[%emt 0:00:23]} 8. a4 {[%emt 0:00:09]} b4 {[%emt 0:00:14]} 9. a5 {[%emt 0:00:19]} O-O {[%emt 0:00:24]} 10. Nbd2 {[%emt 0:00:16]} Be6 {[%emt 0:03:43]} 11. Nc4 {[%emt 0:01:08]} Rb8 {[%emt 0:00:26]} 12. c3 {[%emt 0:00:27]} Qc8 {[%emt 0:06:01]} 13. d4 {[%emt 0:01:38]} exd4 {[%emt 0:07:27]} 14. cxd4 {[%emt 0:00:09]} d5 {[%emt 0:00:14]} 15. exd5 {[%emt 0:03:56]} Bxd5 {[%emt 0:02:08]} 16. Nce5 {[%emt 0:01:55]} Qe6 {[%emt 0:16:12]} 17. Bxd5 {[%emt 0:07:27]} Qxd5 {[%emt 0:00:38]} 18. Qe2 {[%emt 0:01:16]} Bd6 {[%emt 0:11:47]} 19. Qxa6 {[%emt 0:24:35]} Nxd4 {[%emt 0:11:24]} 20. Nxd4 {[%emt 0:00:16]} Qxe5 {[%emt 0:00:54]} 21. Nf3 {[%emt 0:00:04]} Qd5 {[%emt 0:04:51]} 22. Qe2 {[%emt 0:01:13]} Rfe8 {[%emt 0:01:57]} 23. Qd1 {[%emt 0:00:29]} Qb5 {[%emt 0:07:44]} 24. a6 {[%emt 0:05:07]} Ra8 {[%emt 0:02:11]} 25. Qa4 {[%emt 0:00:35]} Qxa4 {[%emt 0:02:26]} 26. Rxa4 {[%emt 0:00:05]} Nd7 {[%emt 0:01:45]} 27. Be3 {[%emt 0:07:54]} Bc5 {[%emt 0:04:44]} 28. Nd4 {[%emt 0:09:40]} Bb6 {[%emt 0:00:22]} 29. Nc6 {[%emt 0:06:20]} Bxe3 {[%emt 0:05:18]} 30. fxe3 {[%emt 0:00:04]} Nc5 {[%emt 0:03:12]} 31. Rxb4 {[%emt 0:10:14]} Rxa6 {[%emt 0:00:27]} 32. Ne7+ {[%emt 0:00:25]} Kf8 {[%emt 0:00:02]} 33. Nd5 {[%emt 0:00:05]} Ne6 {[%emt 0:00:53]} 34. Rb7 {[%emt 0:00:42]} Rc6 {[%emt 0:00:29]} 35. b4 {[%emt 0:00:33]} f6 {[%emt 0:01:08]} 36. e4 {[%emt 0:04:40]} Kg8 {[%emt 0:01:37]} 37. e5 {[%emt 0:00:33]} f5 {[%emt 0:03:09]} 38. Rxf5 {[%emt 0:00:05]} h6 {[%emt 0:00:11]} 39. Rf1 {[%emt 0:02:08]} Rc2 {[%emt 0:00:44]} 40. h3 {[%emt 0:04:05]} Rd8 {[%emt 0:00:44]} 41. Rd1 {[%emt 0:06:09]} Kh7 {[%emt 0:00:48]} 42. Kh2 {[%emt 0:00:55]} Re2 {[%emt 0:00:35]} 43. Nc3 {[%emt 0:03:29]} Rxd1 {[%emt 0:00:06]} 44. Nxe2 {[%emt 0:00:10]} Re1 {[%emt 0:00:18]} 45. Nc3 {[%emt 0:00:49]} Rxe5 {[%emt 0:00:15]} 46. b5 {[%emt 0:01:11]} 1/2-1/2

[Event "Hunan Belt and Road Open 2019"]
[Site "Hunan"]
[Date "2019.08.01"]
[Round "4.26"]
[White "Yeoh, Li Tian"]
[Black "Wang, Yiye"]
[Result "1/2-1/2"]
[ECO "A07"]
[WhiteElo "2528"]
[BlackElo "2440"]
[Annotator "RC"]
[PlyCount "116"]
[EventDate "2019.07.29"]
[EventType "swiss"]
[EventCountry "CHN"]
[SourceTitle "playchess.com"]
[Source "ChessBase"]
[SourceQuality "1"]
[TimeControl "5400+30"]

1. g3 {[%emt 0:00:00]} d5 {[%emt 0:01:38]} 2. Nf3 {[%emt 0:00:00]} c6 {[%emt 0:01:53]} 3. Bg2 {[%emt 0:00:00]} Bg4 {[%emt 0:00:29]} 4. d3 {[%emt 0:00:27]} Nd7 {[%emt 0:00:16]} 5. h3 {[%emt 0:00:18]} Bxf3 {[%emt 0:18:07]} 6. Bxf3 {[%emt 0:01:51]} g6 {[%emt 0:00:07]} 7. O-O {[%emt 0:08:41]} Bg7 {[%emt 0:00:12]} 8. c3 {[%emt 0:00:06]} e6 {[%emt 0:00:34]} 9. Nd2 {[%emt 0:01:06]} Ne7 {[%emt 0:00:23]} 10. Bg2 {[%emt 0:01:48]} O-O {[%emt 0:00:48]} 11. Nf3 {[%emt 0:06:49]} a5 {[%emt 0:15:53]} 12. Bd2 {[%emt 0:01:19]} Nf5 {[%emt 0:03:56]} 13. Qc2 {[%emt 0:15:15]} Qb6 {[%emt 0:03:12]} 14. Kh1 {[%emt 0:01:49]} Nd6 {[%emt 0:00:16]} 15. Rad1 {[%emt 0:05:19]} a4 {[%emt 0:22:09]} 16. Bc1 {[%emt 0:20:23]} Qa5 {[%emt 0:09:24]} 17. c4 {[%emt 0:10:00]} Qb6 {[%emt 0:01:46]} 18. e4 {[%emt 0:01:16]} Qc5 {[%emt 0:04:51]} 19. b3 {[%emt 0:09:12]} axb3 {[%emt 0:00:36]} 20. axb3 {[%emt 0:00:06]} d4 {[%emt 0:04:01]} 21. Bd2 {[%emt 0:02:23]} Qa3 {[%emt 0:00:24]} 22. Rb1 {[%emt 0:01:23]} Ra6 {[%emt 0:04:27]} 23. Rfc1 {[%emt 0:01:11]} Rfa8 {[%emt 0:01:20]} 24. Ne1 {[%emt 0:01:40]} Qc5 {[%emt 0:02:21]} 25. Qd1 {[%emt 0:00:12]} Ra2 {[%emt 0:00:32]} 26. Nc2 {[%emt 0:00:20]} Qb6 {[%emt 0:00:08]} 27. Qe2 {[%emt 0:01:03]} Qd8 {[%emt 0:01:24]} 28. Nb4 {[%emt 0:00:47]} R2a3 {[%emt 0:00:06]} 29. Nc2 {[%emt 0:00:27]} Ra2 {[%emt 0:00:04]} 30. f4 {[%emt 0:00:43]} e5 {[%emt 0:00:46]} 31. Nb4 {[%emt 0:00:41]} R2a3 {[%emt 0:00:03]} 32. Nc2 {[%emt 0:02:36]} Ra2 {[%emt 0:00:03]} 33. b4 {[%emt 0:00:54]} Qe7 {[%emt 0:01:52]} 34. Ra1 {[%emt 0:01:28]} Qe8 {[%emt 0:00:19]} 35. Qd1 {[%emt 0:00:58]} R8a7 {[%emt 0:00:55]} 36. c5 {[%emt 0:01:16]} Nb5 {[%emt 0:00:14]} 37. Rxa2 {[%emt 0:00:04]} Rxa2 {[%emt 0:00:02]} 38. Ra1 {[%emt 0:00:09]} Qa8 {[%emt 0:02:18]} 39. Qb1 {[%emt 0:00:14]} Ra4 {[%emt 0:00:13]} 40. h4 {[%emt 0:01:10]} Nf6 {[%emt 0:00:53]} 41. Bh3 {[%emt 0:02:41]} Nh5 42. Kg2 {[%emt 0:00:00]} exf4 {[%emt 0:01:00]} 43. gxf4 {[%emt 0:00:00]} Bh6 {[%emt 0:00:17]} 44. Kf3 {[%emt 0:00:11]} Nc3 {[%emt 0:01:05]} 45. Rxa4 {[%emt 0:01:15]} Qxa4 {[%emt 0:00:14]} 46. Qb2 {[%emt 0:00:03]} Nd1 {[%emt 0:00:37]} 47. Qc1 {[%emt 0:00:21]} Qb3 {[%emt 0:00:44]} 48. Bf1 {[%emt 0:00:08]} Nb2 {[%emt 0:00:34]} 49. Nxd4 {[%emt 0:00:07]} Qa2 {[%emt 0:00:07]} 50. Nc2 {[%emt 0:02:12]} Qb3 {[%emt 0:00:23]} 51. Nd4 {[%emt 0:00:59]} Qa2 {[%emt 0:00:01]} 52. Be2 {[%emt 0:00:22]} Bg7 {[%emt 0:00:07]} 53. Nc2 {[%emt 0:01:06]} Qe6 {[%emt 0:00:38]} 54. Qh1 {[%emt 0:01:34]} Qb3 {[%emt 0:00:49]} 55. Na1 {[%emt 0:00:05]} Qa2 {[%emt 0:00:45]} 56. Qc1 {[%emt 0:00:52]} Qe6 {[%emt 0:00:21]} 57. Qh1 {[%emt 0:00:06]} Qa2 {[%emt 0:00:14]} 58. Qc1 {[%emt 0:00:34]} Qe6 {[%emt 0:00:10]} 1/2-1/2

[Event "Hunan Belt and Road Open 2019"]
[Site "Hunan"]
[Date "2019.08.01"]
[Round "4.27"]
[White "Raja Harshit"]
[Black "Dai, Changren"]
[Result "0-1"]
[ECO "C72"]
[WhiteElo "2434"]
[BlackElo "2510"]
[Annotator "ChessBase"]
[PlyCount "132"]
[EventDate "2019.07.29"]
[EventType "swiss"]
[EventCountry "CHN"]
[SourceTitle "playchess.com"]
[Source "ChessBase"]
[SourceQuality "1"]
[TimeControl "5400+30"]

1. e4 {[%emt 0:00:00]} e5 {[%emt 0:00:00]} 2. Nf3 {[%emt 0:00:00]} Nc6 {[%emt 0:00:00]} 3. Bb5 {[%emt 0:00:00]} a6 {[%emt 0:00:00]} 4. Ba4 {[%emt 0:00:05]} d6 {[%emt 0:00:00]} 5. O-O {[%emt 0:01:29]} Bd7 {[%emt 0:00:00]} 6. d4 {[%emt 0:07:16]} Nge7 {[%emt 0:06:02]} 7. c4 {[%emt 0:17:51]} Ng6 {[%emt 0:00:47]} 8. Nc3 {[%emt 0:01:40]} Be7 {[%emt 0:02:24]} 9. Be3 {[%emt 0:03:06]} O-O {[%emt 0:07:13]} 10. Rc1 {[%emt 0:02:47]} Bg4 {[%emt 0:03:32]} 11. Bxc6 {[%emt 0:02:28]} bxc6 {[%emt 0:02:19]} 12. h3 {[%emt 0:01:43]} exd4 {[%emt 0:02:01]} 13. Bxd4 {[%emt 0:00:00]} Be6 {[%emt 0:01:27]} 14. b3 {[%emt 0:01:21]} Qd7 {[%emt 0:03:17]} 15. Be3 {[%emt 0:02:15]} f5 {[%emt 0:04:06]} 16. exf5 {[%emt 0:10:52]} Bxf5 {[%emt 0:00:00]} 17. Kh2 {[%emt 0:02:26]} Rae8 {[%emt 0:03:18]} 18. Nd4 {[%emt 0:01:54]} Bf6 {[%emt 0:01:31]} 19. Nxf5 {[%emt 0:04:26]} Qxf5 {[%emt 0:00:32]} 20. Ne2 {[%emt 0:06:38]} Be5+ {[%emt 0:05:31]} 21. Kh1 {[%emt 0:01:31]} Nh4 {[%emt 0:03:34]} 22. Qc2 {[%emt 0:03:15]} Qf7 {[%emt 0:08:18]} 23. f4 {[%emt 0:06:00]} Bb2 {[%emt 0:02:48]} 24. Qxb2 {[%emt 0:00:16]} Rxe3 {[%emt 0:00:03]} 25. Rf2 {[%emt 0:03:55]} Rfe8 {[%emt 0:02:31]} 26. Rc3 {[%emt 0:00:50]} R3e4 {[%emt 0:08:30]} 27. Qd2 {[%emt 0:01:02]} Qf6 {[%emt 0:04:35]} 28. Ng3 {[%emt 0:01:58]} Re1+ {[%emt 0:01:44]} 29. Kh2 {[%emt 0:00:54]} Nf5 {[%emt 0:01:04]} 30. Nxf5 {[%emt 0:03:07]} Qxf5 {[%emt 0:00:01]} 31. Rc1 {[%emt 0:00:41]} R1e3 {[%emt 0:00:58]} 32. Rc3 {[%emt 0:00:47]} Re1 {[%emt 0:00:31]} 33. Rc1 {[%emt 0:00:06]} R1e4 {[%emt 0:00:09]} 34. Rcf1 {[%emt 0:00:47]} a5 {[%emt 0:01:31]} 35. Qd3 {[%emt 0:00:54]} Qc5 {[%emt 0:02:04]} 36. Qg3 {[%emt 0:00:37]} Qf5 {[%emt 0:01:19]} 37. Qd3 {[%emt 0:00:26]} Qf6 {[%emt 0:00:09]} 38. Qd2 {[%emt 0:01:32]} a4 {[%emt 0:01:53]} 39. Qa5 {[%emt 0:00:40]} axb3 {[%emt 0:00:16]} 40. axb3 {[%emt 0:00:36]} Qf7 41. f5 {[%emt 0:01:44]} c5 {[%emt 0:02:43]} 42. f6 {[%emt 0:01:42]} Re2 {[%emt 0:01:29]} 43. Rxe2 {[%emt 0:01:45]} Rxe2 {[%emt 0:00:03]} 44. Qa8+ {[%emt 0:00:38]} Re8 {[%emt 0:00:04]} 45. Qc6 {[%emt 0:01:04]} Rb8 {[%emt 0:02:03]} 46. Rf4 {[%emt 0:06:02]} gxf6 {[%emt 0:00:30]} 47. Qf3 {[%emt 0:00:30]} Rf8 {[%emt 0:00:58]} 48. g4 {[%emt 0:03:47]} Kg7 {[%emt 0:00:47]} 49. h4 {[%emt 0:00:00]} h6 {[%emt 0:05:57]} 50. Kg3 {[%emt 0:00:00]} Re8 {[%emt 0:00:18]} 51. Re4 {[%emt 0:00:00]} Re5 {[%emt 0:01:30]} 52. Rxe5 {[%emt 0:00:00]} fxe5 {[%emt 0:00:03]} 53. Qe4 {[%emt 0:00:10]} Kf6 {[%emt 0:02:57]} 54. Qc6 {[%emt 0:00:29]} Ke6 {[%emt 0:00:38]} 55. Qd5+ {[%emt 0:00:38]} Ke7 {[%emt 0:00:05]} 56. Qe4 {[%emt 0:00:04]} Kd7 {[%emt 0:01:08]} 57. h5 {[%emt 0:01:06]} Ke6 {[%emt 0:01:23]} 58. Qd5+ {[%emt 0:00:27]} Ke7 {[%emt 0:00:03]} 59. Qe4 {[%emt 0:00:26]} Qf4+ {[%emt 0:01:23]} 60. Qxf4 {[%emt 0:00:03]} exf4+ {[%emt 0:00:06]} 61. Kxf4 {[%emt 0:00:03]} Kf6 {[%emt 0:00:04]} 62. g5+ {[%emt 0:01:32]} hxg5+ {[%emt 0:00:01]} 63. Kg4 {[%emt 0:00:07]} c6 {[%emt 0:00:04]} 64. h6 {[%emt 0:00:10]} Kg6 {[%emt 0:00:15]} 65. h7 {[%emt 0:00:52]} Kxh7 {[%emt 0:00:02]} 66. Kxg5 {[%emt 0:00:07]} Kg7 {[%emt 0:00:07]} 0-1

[Event "Hunan Belt and Road Open 2019"]
[Site "Hunan"]
[Date "2019.08.01"]
[Round "4.28"]
[White "Lei, Tingjie"]
[Black "Fang, Yan"]
[Result "1/2-1/2"]
[ECO "A31"]
[WhiteElo "2505"]
[BlackElo "2424"]
[Annotator "ChessBase"]
[PlyCount "98"]
[EventDate "2019.07.29"]
[EventType "swiss"]
[EventCountry "CHN"]
[SourceTitle "playchess.com"]
[Source "ChessBase"]
[SourceQuality "1"]
[TimeControl "5400+30"]

1. e4 {[%emt 0:00:00]} c5 {[%emt 0:00:00]} 2. Nf3 {[%emt 0:00:00]} e6 {[%emt 0:00:00]} 3. d4 {[%emt 0:00:08]} cxd4 {[%emt 0:00:00]} 4. Nxd4 {[%emt 0:00:04]} a6 {[%emt 0:00:14]} 5. c4 {[%emt 0:00:38]} Nf6 {[%emt 0:00:20]} 6. Nc3 {[%emt 0:00:15]} Qc7 {[%emt 0:00:17]} 7. Be2 {[%emt 0:00:41]} b6 {[%emt 0:02:30]} 8. Be3 {[%emt 0:03:48]} Bb7 {[%emt 0:01:51]} 9. f3 {[%emt 0:00:06]} d6 {[%emt 0:11:01]} 10. a4 {[%emt 0:05:06]} Nbd7 {[%emt 0:02:54]} 11. O-O {[%emt 0:04:15]} Be7 {[%emt 0:00:20]} 12. Qd2 {[%emt 0:00:12]} O-O {[%emt 0:01:39]} 13. Rfc1 {[%emt 0:00:50]} Rac8 {[%emt 0:02:01]} 14. a5 {[%emt 0:00:46]} bxa5 {[%emt 0:03:38]} 15. Nb3 {[%emt 0:00:30]} Qb8 {[%emt 0:03:48]} 16. Nxa5 {[%emt 0:02:41]} Ba8 {[%emt 0:00:07]} 17. b4 {[%emt 0:09:21]} d5 {[%emt 0:11:57]} 18. c5 {[%emt 0:03:03]} Qxb4 {[%emt 0:08:16]} 19. Rcb1 {[%emt 0:18:14]} Bxc5 {[%emt 0:00:34]} 20. Rxb4 {[%emt 0:00:18]} Bxb4 {[%emt 0:00:02]} 21. Bd4 {[%emt 0:15:58]} e5 {[%emt 0:01:54]} 22. Qb2 {[%emt 0:00:10]} Rb8 {[%emt 0:18:14]} 23. Nb5 {[%emt 0:06:23]} Bxa5 {[%emt 0:01:08]} 24. Rxa5 {[%emt 0:00:15]} exd4 {[%emt 0:00:26]} 25. Rxa6 {[%emt 0:03:32]} d3 {[%emt 0:17:21]} 26. Bxd3 {[%emt 0:01:58]} Nc5 {[%emt 0:02:16]} 27. Ra3 {[%emt 0:00:16]} Nxd3 {[%emt 0:01:08]} 28. Rxd3 {[%emt 0:00:05]} dxe4 {[%emt 0:00:05]} 29. fxe4 {[%emt 0:00:19]} Bxe4 {[%emt 0:00:09]} 30. Rb3 {[%emt 0:02:00]} h6 {[%emt 0:03:14]} 31. Rb4 {[%emt 0:04:39]} Rfd8 {[%emt 0:02:20]} 32. Nd6 {[%emt 0:01:43]} Rxb4 {[%emt 0:00:40]} 33. Qxb4 {[%emt 0:00:04]} Bg6 {[%emt 0:00:08]} 34. h3 {[%emt 0:00:28]} Kh7 {[%emt 0:00:59]} 35. Kh2 {[%emt 0:03:02]} Rd7 {[%emt 0:01:15]} 36. Qb8 {[%emt 0:00:56]} Ne4 {[%emt 0:03:04]} 37. Nc4 {[%emt 0:00:10]} Nf6 {[%emt 0:01:15]} 38. Ne5 {[%emt 0:02:06]} Rd2 {[%emt 0:00:19]} 39. Qb4 {[%emt 0:01:44]} Rc2 {[%emt 0:00:06]} 40. Nxg6 {[%emt 0:00:19]} fxg6 {[%emt 0:00:04]} 41. Kg3 {[%emt 0:00:21]} Re2 {[%emt 0:00:04]} 42. Kf3 {[%emt 0:00:15]} Re4 {[%emt 0:00:07]} 43. Qb1 {[%emt 0:00:37]} h5 {[%emt 0:00:58]} 44. g3 {[%emt 0:01:06]} g5 {[%emt 0:00:51]} 45. Kf2 {[%emt 0:01:01]} g4 {[%emt 0:00:29]} 46. h4 {[%emt 0:00:10]} Kg8 {[%emt 0:00:23]} 47. Qb3+ {[%emt 0:00:09]} Kh7 {[%emt 0:00:16]} 48. Qb5 {[%emt 0:00:29]} Kg8 {[%emt 0:00:10]} 49. Qf5 {[%emt 0:00:09]} Kh8 {[%emt 0:00:23]} 1/2-1/2

[Event "Hunan Belt and Road Open 2019"]
[Site "Hunan"]
[Date "2019.08.01"]
[Round "4.29"]
[White "Chen, Qi b"]
[Black "Xu, Jun"]
[Result "1-0"]
[ECO "C00"]
[WhiteElo "2414"]
[BlackElo "2477"]
[Annotator "ChessBase"]
[PlyCount "69"]
[EventDate "2019.07.29"]
[EventType "swiss"]
[EventCountry "CHN"]
[SourceTitle "playchess.com"]
[Source "ChessBase"]
[SourceQuality "1"]
[TimeControl "5400+30"]

1. e4 {[%emt 0:00:00]} c5 {[%emt 0:00:00]} 2. Nf3 {[%emt 0:00:06]} e6 {[%emt 0:00:00]} 3. g3 {[%emt 0:01:20]} Nc6 {[%emt 0:02:43]} 4. Bg2 {[%emt 0:00:06]} Nf6 {[%emt 0:01:10]} 5. d3 {[%emt 0:00:19]} d5 {[%emt 0:00:10]} 6. Nbd2 {[%emt 0:00:07]} Be7 {[%emt 0:00:15]} 7. O-O {[%emt 0:00:10]} O-O {[%emt 0:01:54]} 8. Re1 {[%emt 0:00:07]} b5 {[%emt 0:00:58]} 9. e5 {[%emt 0:00:20]} Nd7 {[%emt 0:00:07]} 10. Nf1 {[%emt 0:00:06]} Nd4 {[%emt 0:01:41]} 11. Nxd4 {[%emt 0:05:04]} cxd4 {[%emt 0:00:01]} 12. Qg4 {[%emt 0:00:24]} Kh8 {[%emt 0:00:13]} 13. Qxd4 {[%emt 0:00:48]} Qc7 {[%emt 0:00:00]} 14. c4 {[%emt 0:09:14]} Bc5 {[%emt 0:24:37]} 15. Qf4 {[%emt 0:02:14]} bxc4 {[%emt 0:00:28]} 16. dxc4 {[%emt 0:00:06]} Nb6 {[%emt 0:00:04]} 17. Be3 {[%emt 0:17:10]} Bb7 {[%emt 0:12:20]} 18. Bxc5 {[%emt 0:08:17]} Qxc5 {[%emt 0:00:02]} 19. Rec1 {[%emt 0:01:16]} Qb4 {[%emt 0:02:05]} 20. a3 {[%emt 0:02:32]} Qa4 {[%emt 0:01:50]} 21. Ne3 {[%emt 0:08:07]} Qd7 {[%emt 0:00:23]} 22. Rd1 {[%emt 0:02:59]} Rfd8 {[%emt 0:02:09]} 23. Rd4 {[%emt 0:01:44]} Bc6 {[%emt 0:07:22]} 24. b4 {[%emt 0:05:59]} Qe7 {[%emt 0:03:47]} 25. Rad1 {[%emt 0:01:18]} g5 {[%emt 0:04:16]} 26. Qg4 {[%emt 0:02:13]} Nd7 {[%emt 0:02:36]} 27. f4 {[%emt 0:03:48]} gxf4 {[%emt 0:07:46]} 28. Qxf4 {[%emt 0:00:06]} f6 {[%emt 0:04:26]} 29. exf6 {[%emt 0:02:26]} Qf7 {[%emt 0:00:02]} 30. Ng4 {[%emt 0:01:09]} Re8 {[%emt 0:00:07]} 31. Ne5 {[%emt 0:00:22]} Nxe5 {[%emt 0:00:05]} 32. Qxe5 {[%emt 0:00:01]} a5 {[%emt 0:00:28]} 33. b5 {[%emt 0:00:15]} Bd7 {[%emt 0:00:09]} 34. Rg4 {[%emt 0:01:15]} Rg8 {[%emt 0:00:09]} 35. Rxg8+ {[%emt 0:00:10]} 1-0